[Event "Championnat d'Europe de Blitz"]
[Date "2024.12.09"]
[White "Aymerich Verdaguer, Eduard"]
[Black "Saric, Ante"]
[WhiteElo "2163"]
[BlackElo "2482"]
[Round "6.44"]
[Result "0-1"]
[TimeControl "180+2"]

1. d4 {[%emt 00:00:01] [%clk 00:03:03]} Nf6 {[%emt 00:00:01] [%clk 00:03:03]} 2.
c4 {[%emt 00:00:01] [%clk 00:03:04]} e6 {[%emt 00:00:01] [%clk 00:03:05]} 3. Nc3
{[%emt 00:00:02] [%clk 00:03:03]} Bb4 {[%emt 00:00:01] [%clk 00:03:06]} 4. e3
{[%emt 00:00:03] [%clk 00:03:02]} O-O {[%emt 00:00:02] [%clk 00:03:06]} 5. Bd3
{[%emt 00:00:01] [%clk 00:03:02]} c5 {[%emt 00:00:01] [%clk 00:03:07]} 6. Nge2
{[%emt 00:00:02] [%clk 00:03:03]} d5 {[%emt 00:00:05] [%clk 00:03:05]} 7. O-O
{[%emt 00:00:08] [%clk 00:02:56]} cxd4 {[%emt 00:00:17] [%clk 00:02:49]} 8. exd4
{[%emt 00:00:04] [%clk 00:02:55]} dxc4 {[%emt 00:00:03] [%clk 00:02:49]} 9. Bxc4
{[%clk 00:02:56]} Nc6 {[%emt 00:00:07] [%clk 00:02:43]} 10. Bg5 {[%emt 00:00:13]
[%clk 00:02:44]} h6 {[%emt 00:00:04] [%clk 00:02:43]} 11. Bh4 {[%clk 00:02:45]}
Be7 {[%emt 00:00:03] [%clk 00:02:42]} 12. Rc1 {[%emt 00:00:14] [%clk 00:02:33]}
b6 {[%clk 00:02:44]} 13. Re1 {[%emt 00:00:04] [%clk 00:02:30]} Bb7 {[%clk
00:02:45]} 14. Bg3 {[%emt 00:00:22] [%clk 00:02:10]} Rc8 {[%emt 00:00:03] [%clk
00:02:44]} 15. a3 {[%emt 00:00:13] [%clk 00:01:59]} Nxd4 {[%emt 00:00:10] [%clk
00:02:36]} 16. Qxd4 {[%emt 00:00:41] [%clk 00:01:20]} Qxd4 {[%emt 00:00:01]
[%clk 00:02:37]} 17. Nxd4 {[%emt 00:00:02] [%clk 00:01:20]} Rxc4 {[%clk
00:02:38]} 18. Nf5 {[%emt 00:00:04] [%clk 00:01:18]} Bc5 {[%emt 00:00:19] [%clk
00:02:21]} 19. b3 {[%emt 00:00:21] [%clk 00:00:59]} Rxc3 {[%emt 00:00:10] [%clk
00:02:13]} 20. Nxh6+ {[%emt 00:00:02] [%clk 00:01:00]} gxh6 {[%clk 00:02:14]}
21. Rxc3 {[%emt 00:00:02] [%clk 00:01:01]} a5 {[%emt 00:00:15] [%clk 00:02:01]}
22. Be5 {[%emt 00:00:06] [%clk 00:00:56]} Ng4 {[%emt 00:00:16] [%clk 00:01:46]}
23. Bg3 {[%emt 00:00:15] [%clk 00:00:44]} Bxa3 {[%emt 00:00:09] [%clk 00:01:39]}
24. Rc7 {[%emt 00:00:02] [%clk 00:00:44]} Bd5 {[%emt 00:00:04] [%clk 00:01:38]}
25. h3 {[%emt 00:00:03] [%clk 00:00:43]} Nf6 {[%emt 00:00:02] [%clk 00:01:37]}
26. Be5 {[%emt 00:00:01] [%clk 00:00:43]} Ne4 {[%emt 00:00:06] [%clk 00:01:33]}
27. f3 {[%emt 00:00:14] [%clk 00:00:32]} Bc5+ {[%emt 00:00:06] [%clk 00:01:29]}
28. Kh2 {[%emt 00:00:04] [%clk 00:00:31]} Ng5 {[%emt 00:00:23] [%clk 00:01:07]}
29. h4 {[%emt 00:00:06] [%clk 00:00:27]} Nh7 {[%clk 00:01:09]} 30. Rd1 {[%emt
00:00:13] [%clk 00:00:16]} f6 {[%emt 00:00:03] [%clk 00:01:08]} 31. Bf4 {[%clk
00:00:17]} Rf7 {[%emt 00:00:05] [%clk 00:01:05]} 32. Rxf7 {[%emt 00:00:05] [%clk
00:00:13]} Kxf7 {[%emt 00:00:01] [%clk 00:01:06]} 33. Bxh6 {[%emt 00:00:01]
[%clk 00:00:14]} Bxb3 {[%emt 00:00:10] [%clk 00:00:59]} 34. Rd7+ {[%emt
00:00:01] [%clk 00:00:15]} Kg6 {[%clk 00:01:00]} 35. Bd2 {[%emt 00:00:05] [%clk
00:00:13]} Nf8 {[%emt 00:00:04] [%clk 00:00:58]} 36. Rc7 {[%emt 00:00:03] [%clk
00:00:07]} 0-1

[Site "Europe Echecs"]

[Event "Championnat d'Europe de Blitz"]
[Date "2024.12.09"]
[White "Ochedzan, Tymon"]
[Black "Georgiev, Kiril"]
[WhiteElo "2247"]
[BlackElo "2537"]
[Round "6.45"]
[Result "1/2-1/2"]
[TimeControl "180+2"]

1. e4 {[%emt 00:16:21] [%clk 00:03:04]} d5 {[%emt 00:00:03] [%clk 00:03:01]} 2.
exd5 {[%emt 00:00:01] [%clk 00:03:04]} Qxd5 {[%clk 00:03:03]} 3. Nc3 {[%emt
00:00:01] [%clk 00:03:05]} Qd6 {[%clk 00:03:04]} 4. d4 {[%emt 00:00:02] [%clk
00:03:06]} Nf6 {[%emt 00:00:01] [%clk 00:03:04]} 5. Nf3 {[%emt 00:00:02] [%clk
00:03:06]} c6 {[%clk 00:03:05]} 6. g3 {[%emt 00:00:14] [%clk 00:02:53]} Bg4
{[%emt 00:00:07] [%clk 00:03:00]} 7. Bg2 {[%emt 00:00:06] [%clk 00:02:49]} e6
{[%emt 00:00:02] [%clk 00:03:00]} 8. h3 {[%emt 00:00:08] [%clk 00:02:43]} Bxf3
{[%emt 00:00:10] [%clk 00:02:51]} 9. Bxf3 {[%emt 00:00:02] [%clk 00:02:44]} Be7
{[%emt 00:00:01] [%clk 00:02:51]} 10. O-O {[%emt 00:00:05] [%clk 00:02:42]} Nbd7
{[%emt 00:00:08] [%clk 00:02:45]} 11. a3 {[%emt 00:00:08] [%clk 00:02:36]} Nb6
{[%emt 00:00:04] [%clk 00:02:43]} 12. Bf4 {[%emt 00:00:04] [%clk 00:02:35]} Qd7
{[%clk 00:02:43]} 13. Qd3 {[%emt 00:00:05] [%clk 00:02:32]} O-O {[%emt 00:00:12]
[%clk 00:02:33]} 14. Rad1 {[%emt 00:00:02] [%clk 00:02:33]} Nbd5 {[%emt
00:00:08] [%clk 00:02:27]} 15. Nxd5 {[%emt 00:00:12] [%clk 00:02:22]} cxd5
{[%emt 00:00:06] [%clk 00:02:23]} 16. h4 {[%emt 00:00:08] [%clk 00:02:17]} b5
{[%emt 00:00:06] [%clk 00:02:18]} 17. h5 {[%emt 00:00:03] [%clk 00:02:17]} h6
{[%emt 00:00:08] [%clk 00:02:11]} 18. Kg2 {[%emt 00:00:17] [%clk 00:02:05]} a5
{[%clk 00:02:11]} 19. g4 {[%emt 00:00:04] [%clk 00:02:02]} Nh7 {[%emt 00:00:21]
[%clk 00:01:52]} 20. Be2 {[%emt 00:00:07] [%clk 00:01:57]} Rfc8 {[%emt 00:00:05]
[%clk 00:01:48]} 21. Be3 {[%emt 00:00:07] [%clk 00:01:52]} b4 {[%emt 00:00:03]
[%clk 00:01:48]} 22. axb4 {[%emt 00:00:02] [%clk 00:01:51]} axb4 {[%emt
00:00:01] [%clk 00:01:48]} 23. Ra1 {[%emt 00:00:06] [%clk 00:01:48]} Qc7 {[%emt
00:00:12] [%clk 00:01:38]} 24. Rxa8 {[%emt 00:00:12] [%clk 00:01:39]} Rxa8
{[%emt 00:00:01] [%clk 00:01:38]} 25. f4 {[%emt 00:00:02] [%clk 00:01:39]} Rc8
{[%emt 00:00:08] [%clk 00:01:32]} 26. Bd1 {[%emt 00:00:02] [%clk 00:01:39]} Nf6
{[%emt 00:00:05] [%clk 00:01:29]} 27. g5 {[%emt 00:00:30] [%clk 00:01:11]} Ne4
{[%emt 00:00:08] [%clk 00:01:22]} 28. gxh6 {[%emt 00:00:04] [%clk 00:01:10]}
gxh6 {[%clk 00:01:23]} 29. Kh2 {[%emt 00:00:12] [%clk 00:01:00]} Qc4 {[%emt
00:00:18] [%clk 00:01:06]} 30. f5 {[%emt 00:00:18] [%clk 00:00:45]} Bd6+ {[%emt
00:00:25] [%clk 00:00:44]} 31. Kh3 {[%emt 00:00:02] [%clk 00:00:44]} exf5 {[%emt
00:00:26] [%clk 00:00:20]} 32. Rxf5 {[%emt 00:00:07] [%clk 00:00:39]} Kg7 {[%emt
00:00:04] [%clk 00:00:17]} 33. Qxc4 {[%emt 00:00:06] [%clk 00:00:36]} dxc4
{[%emt 00:00:02] [%clk 00:00:17]} 34. Bf3 {[%emt 00:00:02] [%clk 00:00:36]} Re8
{[%emt 00:00:01] [%clk 00:00:19]} 35. Bf4 {[%emt 00:00:12] [%clk 00:00:26]} Bxf4
{[%emt 00:00:06] [%clk 00:00:14]} 36. Rxf4 {[%clk 00:00:27]} Ng5+ {[%emt
00:00:04] [%clk 00:00:12]} 37. Kg4 {[%clk 00:00:29]} Ne6 {[%emt 00:00:03] [%clk
00:00:11]} 38. Re4 {[%emt 00:00:03] [%clk 00:00:28]} Rd8 {[%emt 00:00:01] [%clk
00:00:12]} 39. c3 {[%emt 00:00:04] [%clk 00:00:26]} bxc3 {[%emt 00:00:02] [%clk
00:00:12]} 40. bxc3 {[%clk 00:00:27]} Rd6 {[%emt 00:00:04] [%clk 00:00:11]} 41.
Be2 {[%emt 00:00:02] [%clk 00:00:27]} Ng5 {[%emt 00:00:02] [%clk 00:00:10]} 42.
Re7 {[%emt 00:00:02] [%clk 00:00:27]} Kf6 {[%emt 00:00:02] [%clk 00:00:10]} 43.
Re8 {[%emt 00:00:02] [%clk 00:00:27]} Rc6 {[%clk 00:00:11]} 44. Rh8 {[%emt
00:00:02] [%clk 00:00:27]} Ke7 {[%clk 00:00:12]} 45. Kf5 {[%emt 00:00:02] [%clk
00:00:28]} Rf6+ {[%emt 00:00:01] [%clk 00:00:13]} 46. Kg4 {[%clk 00:00:29]} Re6
{[%emt 00:00:02] [%clk 00:00:14]} 47. Bxc4 {[%emt 00:00:01] [%clk 00:00:30]} Re3
{[%emt 00:00:02] [%clk 00:00:14]} 48. Rxh6 {[%emt 00:00:02] [%clk 00:00:29]} f6
{[%clk 00:00:15]} 49. Rg6 {[%emt 00:00:03] [%clk 00:00:28]} Rxc3 {[%emt
00:00:03] [%clk 00:00:14]} 50. Bb5 {[%emt 00:00:02] [%clk 00:00:28]} Rb3 {[%emt
00:00:02] [%clk 00:00:15]} 51. Bc6 {[%emt 00:00:02] [%clk 00:00:27]} Rb4 {[%emt
00:00:01] [%clk 00:00:16]} 52. Kf5 {[%emt 00:00:02] [%clk 00:00:27]} Rxd4 {[%emt
00:00:02] [%clk 00:00:16]} 53. Rxf6 {[%emt 00:00:07] [%clk 00:00:23]} Nf7 {[%emt
00:00:01] [%clk 00:00:16]} 54. Re6+ {[%emt 00:00:02] [%clk 00:00:23]} Kf8 {[%emt
00:00:02] [%clk 00:00:17]} 55. h6 {[%emt 00:00:02] [%clk 00:00:22]} Nxh6+ {[%emt
00:00:10] [%clk 00:00:10]} 56. Rxh6 {[%clk 00:00:22]} Ke7 {[%emt 00:00:01] [%clk
00:00:11]} 57. Re6+ {[%emt 00:00:01] [%clk 00:00:23]} Kd8 {[%clk 00:00:13]} 58.
Ke5 {[%clk 00:00:23]} Rd2 {[%emt 00:00:01] [%clk 00:00:14]} 59. Rh6 {[%emt
00:00:01] [%clk 00:00:24]} Kc7 {[%emt 00:00:01] [%clk 00:00:15]} 60. Be4 {[%clk
00:00:25]} Re2 {[%clk 00:00:16]} 61. Rh7+ {[%emt 00:00:04] [%clk 00:00:23]} Kb6
{[%clk 00:00:18]} 62. Kd5 {[%emt 00:00:02] [%clk 00:00:22]} Rd2+ {[%emt
00:00:02] [%clk 00:00:18]} 63. Ke6 {[%clk 00:00:23]} Kc5 {[%emt 00:00:01] [%clk
00:00:19]} 64. Rc7+ {[%emt 00:00:02] [%clk 00:00:24]} Kd4 {[%emt 00:00:01] [%clk
00:00:20]} 65. Bd5 {[%emt 00:00:02] [%clk 00:00:23]} Re2+ {[%emt 00:00:02] [%clk
00:00:21]} 66. Kd6 {[%clk 00:00:24]} Rf2 {[%emt 00:00:02] [%clk 00:00:21]} 67.
Rc4+ {[%emt 00:00:01] [%clk 00:00:25]} Kd3 {[%emt 00:00:02] [%clk 00:00:21]} 68.
Ra4 {[%clk 00:00:27]} Rd2 {[%emt 00:00:02] [%clk 00:00:20]} 69. Ke5 {[%emt
00:00:01] [%clk 00:00:28]} Ke3 {[%clk 00:00:21]} 70. Be4 {[%emt 00:00:02] [%clk
00:00:28]} Rd8 {[%emt 00:00:02] [%clk 00:00:21]} 71. Ra3+ {[%clk 00:00:29]} Kd2
{[%emt 00:00:02] [%clk 00:00:21]} 72. Bd5 {[%emt 00:00:01] [%clk 00:00:30]} Ke2
{[%emt 00:00:02] [%clk 00:00:21]} 73. Ke4 {[%emt 00:00:02] [%clk 00:00:30]} Re8+
{[%emt 00:00:02] [%clk 00:00:21]} 74. Kd4 {[%clk 00:00:32]} Kf2 {[%emt 00:00:02]
[%clk 00:00:21]} 75. Ra2+ {[%emt 00:00:02] [%clk 00:00:32]} Re2 {[%emt 00:00:01]
[%clk 00:00:22]} 76. Ra3 {[%emt 00:00:01] [%clk 00:00:33]} Rd2+ {[%clk
00:00:23]} 77. Ke4 {[%emt 00:00:01] [%clk 00:00:34]} Re2+ {[%emt 00:00:02] [%clk
00:00:23]} 78. Kf4 {[%clk 00:00:35]} Rd2 {[%emt 00:00:02] [%clk 00:00:24]} 79.
Be4 {[%emt 00:00:02] [%clk 00:00:35]} Ke2 {[%emt 00:00:02] [%clk 00:00:24]} 80.
Rh3 {[%emt 00:00:01] [%clk 00:00:35]} Kf2 {[%emt 00:00:02] [%clk 00:00:25]} 81.
Bf5 {[%emt 00:00:05] [%clk 00:00:32]} Rd4+ {[%emt 00:00:02] [%clk 00:00:25]} 82.
Be4 {[%emt 00:00:01] [%clk 00:00:33]} Rd2 {[%emt 00:00:01] [%clk 00:00:26]} 83.
Rh8 {[%emt 00:00:02] [%clk 00:00:33]} Ke2 {[%emt 00:00:02] [%clk 00:00:26]} 84.
Rh2+ {[%clk 00:00:33]} Ke1 {[%emt 00:00:01] [%clk 00:00:27]} 85. Rh1+ {[%emt
00:00:01] [%clk 00:00:34]} Kf2 {[%emt 00:00:01] [%clk 00:00:28]} 86. Ra1 {[%emt
00:00:06] [%clk 00:00:30]} Ke2 {[%emt 00:00:03] [%clk 00:00:28]} 87. Bf3+ {[%emt
00:00:01] [%clk 00:00:31]} Kf2 {[%clk 00:00:29]} 88. Ra4 {[%emt 00:00:01] [%clk
00:00:32]} Rb2 {[%emt 00:00:02] [%clk 00:00:28]} 89. Bg4 {[%emt 00:00:03] [%clk
00:00:31]} Rd2 {[%emt 00:00:03] [%clk 00:00:28]} 90. Ke4 {[%emt 00:00:03] [%clk
00:00:30]} Rb2 {[%emt 00:00:03] [%clk 00:00:26]} 91. Bf3 {[%emt 00:00:03] [%clk
00:00:29]} Rd2 {[%emt 00:00:02] [%clk 00:00:27]} 92. Ra8 {[%emt 00:00:04] [%clk
00:00:27]} Rb2 {[%emt 00:00:02] [%clk 00:00:27]} 93. Kf4 {[%emt 00:00:01] [%clk
00:00:28]} Rd2 {[%emt 00:00:02] [%clk 00:00:26]} 94. Rg8 {[%emt 00:00:02] [%clk
00:00:28]} Rd4+ {[%emt 00:00:02] [%clk 00:00:26]} 95. Be4 {[%emt 00:00:01] [%clk
00:00:29]} Rd2 {[%clk 00:00:28]} 96. Rg2+ {[%emt 00:00:16] [%clk 00:00:15]} Ke1
{[%emt 00:00:01] [%clk 00:00:28]} 97. Rg3 {[%emt 00:00:01] [%clk 00:00:16]} Kf2
{[%clk 00:00:29]} 98. Re3 {[%emt 00:00:01] [%clk 00:00:17]} Rd8 {[%emt 00:00:06]
[%clk 00:00:24]} 99. Rf3+ {[%emt 00:00:03] [%clk 00:00:17]} Ke2 {[%emt 00:00:01]
[%clk 00:00:25]} 100. Rh3 {[%emt 00:00:02] [%clk 00:00:17]} Rd2 {[%emt 00:00:02]
[%clk 00:00:26]} 101. Re3+ {[%clk 00:00:17]} Kf2 {[%emt 00:00:01] [%clk
00:00:26]} 102. Rc3 {[%emt 00:00:04] [%clk 00:00:16]} Ke2 {[%emt 00:00:04] [%clk
00:00:25]} 103. Bf3+ {[%emt 00:00:01] [%clk 00:00:16]} Kf2 {[%emt 00:00:01]
[%clk 00:00:26]} 104. Rc1 {[%emt 00:00:03] [%clk 00:00:15]} Rd4+ {[%emt
00:00:02] [%clk 00:00:27]} 105. Be4 {[%clk 00:00:17]} Rd2 {[%clk 00:00:28]} 106.
Rh1 {[%clk 00:00:18]} Ke2 {[%emt 00:00:03] [%clk 00:00:27]} 107. Rh3 {[%emt
00:00:04] [%clk 00:00:16]} Kf2 {[%emt 00:00:02] [%clk 00:00:27]} 108. Bd3 {[%emt
00:00:05] [%clk 00:00:13]} Kg2 {[%emt 00:00:11] [%clk 00:00:18]} 109. Rg3+
{[%emt 00:00:02] [%clk 00:00:13]} Kf2 {[%emt 00:00:05] [%clk 00:00:15]} 110.
Rf3+ {[%emt 00:00:01] [%clk 00:00:14]} Kg2 {[%emt 00:00:02] [%clk 00:00:16]}
111. Be4 {[%emt 00:00:03] [%clk 00:00:13]} Rf2 {[%emt 00:00:02] [%clk 00:00:14]}
1/2-1/2

[Site "Europe Echecs"]

[Event "Championnat d'Europe de Blitz"]
[Date "2024.12.09"]
[White "Uruci, Besim"]
[Black "Laurusas, Tomas"]
[WhiteElo "2095"]
[BlackElo "2578"]
[Round "6.46"]
[Result "0-1"]
[TimeControl "180+2"]

1. Nf3 {[%emt 00:00:02] [%clk 00:03:02]} d5 {[%emt 00:00:01] [%clk 00:03:03]} 2.
d4 {[%clk 00:03:03]} c5 {[%emt 00:00:01] [%clk 00:03:04]} 3. c3 {[%emt 00:00:01]
[%clk 00:03:04]} Bf5 {[%emt 00:00:04] [%clk 00:03:02]} 4. Bf4 {[%emt 00:00:06]
[%clk 00:02:59]} e6 {[%emt 00:00:03] [%clk 00:03:02]} 5. e3 {[%emt 00:00:03]
[%clk 00:02:58]} Nc6 {[%emt 00:00:01] [%clk 00:03:03]} 6. Nbd2 {[%emt 00:00:02]
[%clk 00:02:59]} Qb6 {[%emt 00:00:01] [%clk 00:03:03]} 7. Qb3 {[%emt 00:00:02]
[%clk 00:02:59]} c4 {[%emt 00:00:01] [%clk 00:03:04]} 8. Qa4 {[%emt 00:00:05]
[%clk 00:02:55]} Qxb2 {[%emt 00:00:10] [%clk 00:02:57]} 9. Qd1 {[%emt 00:00:16]
[%clk 00:02:41]} Bc2 {[%emt 00:00:08] [%clk 00:02:51]} 10. Qc1 {[%clk 00:02:42]}
Ba3 {[%emt 00:00:01] [%clk 00:02:52]} 11. Qxb2 {[%emt 00:00:07] [%clk 00:02:37]}
Bxb2 {[%emt 00:00:01] [%clk 00:02:53]} 12. Rb1 {[%emt 00:00:08] [%clk 00:02:31]}
Bxb1 {[%emt 00:00:02] [%clk 00:02:53]} 13. Nxb1 {[%emt 00:00:01] [%clk
00:02:32]} b5 {[%emt 00:00:05] [%clk 00:02:50]} 14. Be2 {[%emt 00:00:01] [%clk
00:02:33]} Nf6 {[%emt 00:00:03] [%clk 00:02:49]} 15. Nfd2 {[%emt 00:00:05] [%clk
00:02:30]} a5 {[%emt 00:00:04] [%clk 00:02:47]} 16. O-O {[%emt 00:00:01] [%clk
00:02:30]} b4 {[%clk 00:02:49]} 17. Bf3 {[%emt 00:00:16] [%clk 00:02:16]} Kd7
{[%emt 00:00:07] [%clk 00:02:44]} 18. e4 {[%emt 00:00:10] [%clk 00:02:08]} bxc3
{[%emt 00:00:02] [%clk 00:02:43]} 19. exd5 {[%emt 00:00:03] [%clk 00:02:07]}
exd5 {[%emt 00:00:02] [%clk 00:02:43]} 0-1

[Site "Europe Echecs"]

[Event "Championnat d'Europe de Blitz"]
[Date "2024.12.09"]
[White "Yuste Valenzuela, Alejandro"]
[Black "Stankovic, Milos"]
[WhiteElo "2150"]
[BlackElo "2462"]
[Round "6.47"]
[Result "0-1"]
[TimeControl "180+2"]

1. e4 {[%clk 00:03:03]} e6 {[%emt 00:00:01] [%clk 00:03:03]} 2. d4 {[%emt
00:00:02] [%clk 00:03:03]} d5 {[%clk 00:03:04]} 3. Nc3 {[%emt 00:00:01] [%clk
00:03:05]} Nf6 {[%emt 00:00:01] [%clk 00:03:05]} 4. Bg5 {[%emt 00:00:01] [%clk
00:03:06]} dxe4 {[%emt 00:00:01] [%clk 00:03:05]} 5. Nxe4 {[%emt 00:00:02] [%clk
00:03:06]} Be7 {[%emt 00:00:01] [%clk 00:03:06]} 6. Bxf6 {[%emt 00:00:06] [%clk
00:03:02]} gxf6 {[%emt 00:00:01] [%clk 00:03:06]} 7. g3 {[%emt 00:00:03] [%clk
00:03:02]} f5 {[%emt 00:00:08] [%clk 00:03:00]} 8. Nc3 {[%emt 00:00:02] [%clk
00:03:02]} c6 {[%emt 00:00:02] [%clk 00:02:59]} 9. Bg2 {[%emt 00:00:04] [%clk
00:03:02]} h5 {[%emt 00:00:01] [%clk 00:02:59]} 10. h4 {[%emt 00:00:05] [%clk
00:02:59]} Nd7 {[%emt 00:00:02] [%clk 00:02:59]} 11. Nf3 {[%emt 00:00:05] [%clk
00:02:56]} Qc7 {[%emt 00:00:06] [%clk 00:02:56]} 12. Qe2 {[%emt 00:00:06] [%clk
00:02:51]} b6 {[%emt 00:00:21] [%clk 00:02:37]} 13. O-O-O {[%emt 00:00:08] [%clk
00:02:44]} Bb7 {[%emt 00:00:01] [%clk 00:02:39]} 14. Rhe1 {[%emt 00:00:10] [%clk
00:02:37]} O-O-O {[%emt 00:00:07] [%clk 00:02:33]} 15. Kb1 {[%emt 00:00:08]
[%clk 00:02:31]} Kb8 {[%emt 00:00:10] [%clk 00:02:24]} 16. Ne5 {[%emt 00:00:39]
[%clk 00:01:55]} Nxe5 {[%emt 00:00:06] [%clk 00:02:21]} 17. dxe5 {[%emt
00:00:01] [%clk 00:01:56]} Bb4 {[%emt 00:00:19] [%clk 00:02:04]} 18. Qc4 {[%emt
00:00:11] [%clk 00:01:46]} Bc5 {[%emt 00:00:06] [%clk 00:02:00]} 19. Qf4 {[%emt
00:00:15] [%clk 00:01:33]} Rxd1+ {[%emt 00:00:15] [%clk 00:01:48]} 20. Rxd1
{[%emt 00:00:01] [%clk 00:01:33]} Rd8 {[%emt 00:00:04] [%clk 00:01:46]} 21. a3
{[%emt 00:00:33] [%clk 00:01:02]} Rxd1+ {[%emt 00:00:05] [%clk 00:01:44]} 22.
Nxd1 {[%emt 00:00:01] [%clk 00:01:03]} Qd8 {[%emt 00:00:01] [%clk 00:01:44]} 23.
Nc3 {[%emt 00:00:15] [%clk 00:00:51]} Qd4 {[%emt 00:00:10] [%clk 00:01:36]} 24.
Qxd4 {[%emt 00:00:11] [%clk 00:00:42]} Bxd4 {[%emt 00:00:01] [%clk 00:01:37]}
25. f4 {[%emt 00:00:02] [%clk 00:00:41]} c5 {[%emt 00:00:20] [%clk 00:01:20]}
26. Bxb7 {[%emt 00:00:11] [%clk 00:00:32]} Kxb7 {[%emt 00:00:01] [%clk
00:01:20]} 27. Ne2 {[%emt 00:00:04] [%clk 00:00:30]} Bf2 {[%emt 00:00:02] [%clk
00:01:20]} 28. Kc1 {[%emt 00:00:03] [%clk 00:00:30]} Kc6 {[%emt 00:00:02] [%clk
00:01:20]} 29. c4 {[%emt 00:00:01] [%clk 00:00:30]} a6 {[%emt 00:00:08] [%clk
00:01:14]} 30. Kc2 {[%emt 00:00:03] [%clk 00:00:30]} b5 {[%emt 00:00:06] [%clk
00:01:10]} 31. Kd3 {[%clk 00:00:30]} Be1 {[%emt 00:00:02] [%clk 00:01:10]} 32.
b3 {[%emt 00:00:07] [%clk 00:00:25]} Kb6 {[%emt 00:00:03] [%clk 00:01:09]} 33.
Kc2 {[%emt 00:00:09] [%clk 00:00:18]} Ka5 {[%emt 00:00:05] [%clk 00:01:07]} 34.
Kd1 {[%emt 00:00:05] [%clk 00:00:14]} Bf2 {[%emt 00:00:03] [%clk 00:01:06]} 35.
Kc2 {[%clk 00:00:16]} bxc4 {[%emt 00:00:07] [%clk 00:01:00]} 36. bxc4 {[%emt
00:00:01] [%clk 00:00:17]} Ka4 {[%emt 00:00:01] [%clk 00:01:01]} 37. Kb2 {[%emt
00:00:03] [%clk 00:00:16]} Be1 {[%emt 00:00:37] [%clk 00:00:26]} 38. Ka2 {[%emt
00:00:03] [%clk 00:00:16]} Ka5 {[%emt 00:00:05] [%clk 00:00:23]} 39. Kb3 {[%emt
00:00:01] [%clk 00:00:17]} Kb6 {[%clk 00:00:23]} 40. Kc2 {[%emt 00:00:03] [%clk
00:00:16]} Kc6 {[%clk 00:00:24]} 41. Kd1 {[%emt 00:00:01] [%clk 00:00:17]} Bf2
{[%emt 00:00:02] [%clk 00:00:25]} 42. Kc2 {[%clk 00:00:18]} Kd7 {[%emt 00:00:01]
[%clk 00:00:26]} 43. Kb3 {[%emt 00:00:04] [%clk 00:00:16]} Ke7 {[%emt 00:00:02]
[%clk 00:00:26]} 44. Kc2 {[%emt 00:00:04] [%clk 00:00:14]} f6 {[%emt 00:00:02]
[%clk 00:00:25]} 45. exf6+ {[%emt 00:00:05] [%clk 00:00:11]} Kxf6 {[%emt
00:00:01] [%clk 00:00:26]} 46. Kd3 {[%clk 00:00:12]} e5 {[%emt 00:00:07] [%clk
00:00:21]} 47. fxe5+ {[%emt 00:00:10] [%clk 00:00:04]} Kxe5 {[%clk 00:00:22]}
48. Nf4 {[%emt 00:00:03] [%clk 00:00:04]} Bxg3 {[%emt 00:00:06] [%clk 00:00:18]}
49. Nxh5 {[%clk 00:00:05]} Bxh4 {[%emt 00:00:02] [%clk 00:00:18]} 50. Ke3 {[%emt
00:00:03] [%clk 00:00:04]} Bg5+ {[%emt 00:00:04] [%clk 00:00:15]} 51. Kd3 {[%emt
00:00:02] [%clk 00:00:04]} f4 {[%emt 00:00:03] [%clk 00:00:14]} 52. Ng7 {[%emt
00:00:02] [%clk 00:00:04]} f3 {[%emt 00:00:02] [%clk 00:00:14]} 53. Nh5 {[%emt
00:00:02] [%clk 00:00:04]} f2 {[%emt 00:00:04] [%clk 00:00:12]} 54. Ng3 {[%emt
00:00:02] [%clk 00:00:04]} Bf4 {[%emt 00:00:02] [%clk 00:00:12]} 55. Nf1 {[%clk
00:00:05]} a5 {[%emt 00:00:04] [%clk 00:00:10]} 56. a4 {[%emt 00:00:01] [%clk
00:00:06]} Bg5 {[%emt 00:00:04] [%clk 00:00:08]} 57. Ng3 {[%clk 00:00:07]} Bh4
{[%emt 00:00:01] [%clk 00:00:10]} 58. Nf1 {[%emt 00:00:01] [%clk 00:00:08]} Kf4
{[%clk 00:00:11]} 59. Ne3 {[%emt 00:00:03] [%clk 00:00:06]} Kf3 {[%emt 00:00:02]
[%clk 00:00:11]} 60. Nf1 {[%emt 00:00:01] [%clk 00:00:07]} Bg3 {[%emt 00:00:03]
[%clk 00:00:10]} 61. Nd2 {[%emt 00:00:05] [%clk 00:00:04]} Kg2 {[%emt 00:00:02]
[%clk 00:00:10]} 62. Ke2 {[%clk 00:00:06]} Be5 {[%emt 00:00:03] [%clk 00:00:08]}
63. Nf1 {[%emt 00:00:02] [%clk 00:00:06]} Bf4 {[%emt 00:00:01] [%clk 00:00:09]}
0-1

[Site "Europe Echecs"]